[Event "FIDE World School-ch O-9 2025"]
[Site "Vrnjacka Banja"]
[Date "2025.03.28"]
[Round "9.6"]
[White "Lee, Jinwoo A"]
[Black "Dede, Omer Taha"]
[Result "0-1"]
[Annotator "NA RC"]
[ECO "D31"]
[WhiteElo "1525"]
[BlackElo "1647"]
[PlyCount "180"]
[EventDate "2025.03.19"]
[EventType "swiss"]
[EventCountry "SRB"]
[SourceTitle "playchess.com"]
[Source "ChessBase"]
[SourceQuality "1"]
[TimeControl "5400+30"]

1. d4 {[%emt 0:03:14]} d5 {[%emt 0:01:00]} 2. c4 {[%emt 0:00:20]} e6 {[%emt 0:02:30]} 3. Nf3 {[%emt 0:00:19]} a6 {[%emt 0:01:00]} 4. cxd5 {[%emt 0:00:09]} exd5 {[%emt 0:01:00]} 5. Nc3 {[%emt 0:00:15]} c6 {[%emt 0:02:00]} 6. a3 {[%emt 0:00:14]} Nf6 {[%emt 0:01:30]} 7. Bf4 {[%emt 0:07:10]} Bd6 {[%emt 0:04:00]} 8. Bxd6 {[%emt 0:04:05]} Qxd6 {[%emt 0:01:00]} 9. e3 {[%emt 0:02:35]} Bg4 {[%emt 0:02:00]} 10. h3 {[%emt 0:00:10]} Bh5 {[%emt 0:00:30]} 11. g4 {[%emt 0:00:05]} Bg6 {[%emt 0:01:30]} 12. Ne5 {[%emt 0:00:04]} Ne4 {[%emt 0:16:00]} 13. Nxg6 {[%emt 0:02:28]} Qxg6 {[%emt 0:13:30]} 14. Bd3 {[%emt 0:02:53]} Qe6 {[%emt 0:02:00]} 15. Qe2 {[%emt 0:00:33]} Nd7 {[%emt 0:03:30]} 16. Nxe4 {[%emt 0:04:26]} dxe4 {[%emt 0:00:29]} 17. Bc4 {[%emt 0:01:51]} Qe7 {[%emt 0:01:31]} 18. Rc1 {[%emt 0:05:26]} Nb6 {[%emt 0:02:30]} 19. Bb3 {[%emt 0:02:01]} Nd5 {[%emt 0:02:00]} 20. Bxd5 {[%emt 0:07:00]} cxd5 {[%emt 0:01:30]} 21. f4 {[%emt 0:00:49]} O-O {[%emt 0:01:39]} 22. Kf2 {[%emt 0:06:46]} Rac8 {[%emt 0:02:11]} 23. Rc2 {[%emt 0:01:42]} Rc7 {[%emt 0:03:10]} 24. Rhc1 {[%emt 0:00:33]} Rfc8 {[%emt 0:00:40]} 25. Qd2 {[%emt 0:03:52]} h6 {[%emt 0:00:50]} 26. Rxc7 {[%emt 0:00:15]} Rxc7 {[%emt 0:00:10]} 27. Rxc7 {[%emt 0:00:06]} Qxc7 {[%emt 0:00:10]} 28. Qc3 {[%emt 0:00:21]} Qxc3 {[%emt 0:03:10]} 29. bxc3 {[%emt 0:00:03]} Kf8 {[%emt 0:00:36]} 30. Ke2 {[%emt 0:00:12]} Ke7 {[%emt 0:00:06]} 31. Kd2 {[%emt 0:00:12]} Kd6 {[%emt 0:00:06]} 32. Kc2 {[%emt 0:00:06]} Kc6 {[%emt 0:00:17]} 33. Kb3 {[%emt 0:00:19]} Kb5 {[%emt 0:00:24]} 34. a4+ {[%emt 0:00:12]} Kc6 {[%emt 0:08:01]} 35. c4 {[%emt 0:02:09]} b6 {[%emt 0:01:05]} 36. cxd5+ {[%emt 0:00:31]} Kxd5 {[%emt 0:00:15]} 37. Kb4 {[%emt 0:00:07]} g5 {[%emt 0:03:10]} 38. f5 {[%emt 0:02:20]} f6 {[%emt 0:00:57]} 39. Kb3 {[%emt 0:01:18]} Kd6 {[%emt 0:01:16]} 40. Kc4 {[%emt 0:43:19]} Kc6 {[%emt 0:00:48]} 41. Kb4 {[%emt 0:00:00]} Kd5 {[%emt 0:00:09]} 42. Kc3 {[%emt 0:00:00]} Kd6 {[%emt 0:02:47]} 43. Kc4 {[%emt 0:00:00]} Kc6 {[%emt 0:00:08]} 44. d5+ {[%emt 0:00:00]} Kd6 {[%emt 0:00:15]} 45. Kd4 {[%emt 0:00:00]} b5 {[%emt 0:00:20]} 46. a5 {[%emt 0:00:00]} b4 {[%emt 0:00:09]} 47. Kxe4 {[%emt 0:00:00]} Kc5 {[%emt 0:00:57]} 48. Kd3 {[%emt 0:00:00]} Kxd5 {[%emt 0:00:19]} 49. e4+ {[%emt 0:00:00]} Kc5 {[%emt 0:09:10]} 50. Kc2 {[%emt 0:00:00]} Kd4 {[%emt 0:00:59]} 51. Kb3 {[%emt 0:00:00]} Kxe4 {[%emt 0:00:06]} 52. Kxb4 {[%emt 0:00:00]} Kd4 {[%emt 0:00:09]} 53. Kb3 {[%emt 0:00:00]} Kd3 {[%emt 0:01:01]} 54. Kb4 {[%emt 0:00:00]} Kd4 {[%emt 0:00:07]} 55. Kb3 {[%emt 0:00:00]} Kc5 {[%emt 0:05:57]} 56. Ka4 {[%emt 0:00:00]} Kc4 {[%emt 0:00:03]} 57. Ka3 {[%emt 0:00:00]} Kb5 {[%emt 0:00:10]} 58. Kb3 {[%emt 0:00:00]} Kxa5 {[%emt 0:00:05]} 59. Ka3 {[%emt 0:00:00]} Kb5 {[%emt 0:00:40]} 60. Kb3 {[%emt 0:00:00]} Kc5 {[%emt 0:00:07]} 61. Ka4 {[%emt 0:00:00]} Kd4 {[%emt 0:00:28]} 62. Ka5 {[%emt 0:00:00]} Ke4 {[%emt 0:00:11]} 63. Kxa6 {[%emt 0:11:30]} Kf4 {[%emt 0:07:42]} 64. Kb6 {[%emt 0:00:00]} Kg3 {[%emt 0:00:00]} 65. Kc6 {[%emt 0:00:00]} Kxh3 {[%emt 0:00:00]} 66. Kd6 {[%emt 0:00:00]} Kxg4 {[%emt 0:00:00]} 67. Ke6 {[%emt 0:00:00]} h5 {[%emt 0:00:00]} 68. Kxf6 {[%emt 0:00:00]} h4 {[%emt 0:00:00]} 69. Kg6 {[%emt 0:00:00]} h3 {[%emt 0:00:00]} 70. f6 {[%emt 0:00:00]} h2 {[%emt 0:00:00]} 71. f7 {[%emt 0:00:00]} h1=Q {[%emt 0:00:00]} 72. f8=Q {[%emt 0:00:00]} Qc6+ {[%emt 0:00:00]} 73. Kh7 {[%emt 0:00:00]} Qd7+ {[%emt 0:00:00]} 74. Kg8 {[%emt 0:00:00]} Qe6+ {[%emt 0:00:00]} 75. Kh8 {[%emt 0:00:00]} Qf5 {[%emt 0:00:00]} 76. Qb4+ {[%emt 0:00:00]} Kh5 {[%emt 0:00:00]} 77. Qe7 {[%emt 0:00:00]} g4 {[%emt 0:01:28]} 78. Qe8+ {[%emt 0:00:00]} Qg6 {[%emt 0:01:41]} 79. Qe5+ {[%emt 0:00:00]} Kh4 {[%emt 0:01:08]} 80. Qh2+ {[%emt 0:00:00]} Kg5 {[%emt 0:00:05]} 81. Qe5+ {[%emt 0:09:00]} Qf5 {[%emt 0:00:10]} 82. Qe3+ {[%emt 0:00:00]} Kf6 {[%emt 0:00:09]} 83. Qb6+ {[%emt 0:00:00]} Kf7 {[%emt 0:00:28]} 84. Qc7+ {[%emt 0:00:00]} Kg6 {[%emt 0:00:11]} 85. Qh7+ {[%emt 0:00:00]} Kf6 {[%emt 0:00:31]} 86. Qg7+ {[%emt 0:00:00]} Ke6 {[%emt 0:00:05]} 87. Qg8+ {[%emt 0:00:00]} Ke5 {[%emt 0:00:24]} 88. Qe8+ {[%emt 0:00:00]} Kf4 {[%emt 0:00:15]} 89. Qa4+ {[%emt 0:00:00]} Kg5 {[%emt 0:00:09]} 90. Qd1 {[%emt 0:00:00]} Kg6 {[%emt 0:06:46]} 0-1